Cogmind - Beta 10.2 @@@ ROGUE MODE // 2021.01.26 @ 19:42:24 Player: CrossedViper Result: Destroyed by 8R-AWN with 8R-AWN's Boregun Performance ------------- Evolutions (0) 0 Regions Visited (3) 600 Robots Destroyed (14) 70 Value Destroyed (315) 315 Prototype IDs (23) 460 Alien Tech Used (0) 0 Bonus (300) 300 TOTAL SCORE: 1745 Bonus ------- Aligned with FarCom 300 Cogmind --------- Core Integrity 0/250 Matter 169/300 Energy 100/100 System Corruption 1% Temperature Cool (0) Movement Treading (180) Ox1 Location -10/Exiles Parts ------- > --- POWER (1) -------- (None) > --- PROPULSION (2) --- Light Treads Improved Treads > --- UTILITY (2) ------ Humpback > --- WEAPON (2) ------- (None) > --- INVENTORY (24) --- Improved Treads Power Shielding Peak State ------------ > --- POWER ------------ Light Ion Engine > --- PROPULSION ------- Light Treads Light Treads > --- UTILITY ---------- Humpback > --- WEAPON ----------- Improved Light Cannon Field Lobotomy Kit > --- INVENTORY -------- Light Treads Light Treads Light Treads Light Treads Light Treads Light Treads Improved Treads Improved Treads Improved Treads Improved Treads Large Storage Unit Large Storage Unit High-capacity Storage Unit Humpback Superbattery Small Matter Pod Power Shielding Small Laser Small Laser Assault Rifle Assault Rifle Light Assault Rifle Grenade Launcher [Rating: 20] Favorites ----------- Power Light Ion Engine Engine Light Ion Engine Propulsion Light Treads Treads Light Treads Leg Aluminum Leg Utility Large Storage Unit Device Heat Shielding Storage Large Storage Unit Weapon Assault Rifle Energy Gun Small Laser Ballistic Gun Assault Rifle Ballistic Cannon Improved Light Cannon Launcher Grenade Launcher Special Weapon Field Lobotomy Kit Build | -11 -10 -10 -10 ------- Run | Scr Mat Min Exi Slots Evolved . | . . . . Power . | . . . . Propulsion . | . . . . Utility . | . . . . Weapon . | . . . . Parts Attached 27 | . 9 3 15 Power 1 | . 1 . . Engine 1 | . 1 . . Core . | . . . . Reactor . | . . . . Propulsion 9 | . 4 1 4 Treads 9 | . 4 1 4 Leg . | . . . . Wheel . | . . . . Hover . | . . . . Flight . | . . . . Utility 5 | . 3 . 2 Device 1 | . 1 . . Storage 4 | . 2 . 2 Processor . | . . . . Hackware . | . . . . Protection . | . . . . Artifact . | . . . . Weapon 12 | . 1 2 9 Energy Gun 3 | . . . 3 Energy Cannon . | . . . . Ballistic Gun 3 | . . . 3 Ballistic Cannon 2 | . 1 1 . Launcher 2 | . . 1 1 Special Weapon 2 | . . . 2 Impact Weapon . | . . . . Slashing Weapon . | . . . . Piercing Weapon . | . . . . Special Melee Weapon . | . . . . Unidentified Prototypes . | . . . . Parts Lost 13 | . 1 . 12 Power 1 | . . . 1 Propulsion 4 | . . . 4 Utility 2 | . 1 . 1 Weapon 6 | . . . 6 Highest Loss Streak 7 | . 1 . 7 Average Slot Usage (%) 93 | . 98 100 85 Engine 12 | . 14 14 11 Treads 27 | . 27 28 27 Device 1 | . 4 . . Storage 22 | . 22 28 18 Ballistic Gun 13 | . 14 14 13 Ballistic Cannon 12 | . 13 14 11 Naked Turns . | . . . . Heaviest Build 95 | 10 41 41 95 Greatest Support 40 | 20 40 40 40 Greatest Overweight (x) 2 | . 1 1 2 Average Overweight (x) 1 | . . 1 1 Largest Inventory Capacity 24 | . 16 16 24 Average Capacity 17 | . 12 16 21 Most Carried 24 | . 16 16 24 Average Carried 15 | . 11 15 17 Final Capacity 24 | 6 16 16 24 Final Carried 16 | 6 15 16 2 Class Distribution -------------------- 70% | Mutant 29% | Hauler-Mutant Dominant Class ---------------- Mutant | -10/Materials Mutant | -10/Mines Hauler-Mutant | -10/Exiles Resources | -11 -10 -10 -10 ----------- Run | Scr Mat Min Exi Matter Collected 573 | 200 220 92 61 Remotely . | . . . . Salvage Created 504 | . 284 126 94 Parts 39 | . 24 7 8 Haulers Intercepted . | . . . . Recyclers Shooed . | . . . . Parts Field Recycled . | . . . . Retrieved Matter . | . . . . Parts Self-Destructed . | . . . . Prevented . | . . . . Kills | -11 -10 -10 -10 ------- Run | Scr Mat Min Exi Combat Hostiles Destroyed 12 | . 6 3 3 Guns 5 | . 4 1 . Cannons 3 | . 2 . 1 AOE 4 | . . 2 2 Classes Destroyed 6 | . 3 1 2 Worker 2 | . 1 1 . Builder 2 | . 2 . . Swarmer 3 | . . 3 . Grunt 6 | . 6 . . Zionite 1 | . . . 1 Assembled 3 | . . . 3 Best Kill Streak 4 | . 3 3 4 Combat Bots Only 3 | . 2 3 3 Max Kills in Single Turn 2 | . 1 1 2 Gunslinging . | . . . . Exploded 1 | . . 1 1 Melee . | . . . . Uniques/NPCs Destroyed 1 | . . . 1 EX-BIN (-10/Exiles) Combat | -11 -10 -10 -10 -------- Run | Scr Mat Min Exi Damage Taken 2275 | . 388 84 1803 Core 269 | . 18 7 244 Absorbed by Shields . | . . . . Core Remaining (%) 100 | 100 . . . Volleys Fired 76 | . 28 7 41 Largest 2 | . 2 2 2 Hottest 80 | . 59 59 80 Shots Fired 135 | . 56 12 67 Gun 87 | . 28 5 54 Cannon 37 | . 28 5 4 Launcher 6 | . . 2 4 Special 5 | . . . 5 Kinetic 121 | . 56 10 55 Thermal 3 | . . . 3 Explosive 6 | . . 2 4 Electromagnetic . | . . . . Robot Hit Streak 6 | . 6 6 6 Robot Miss Streak 3 | . 2 1 3 Penetration Max . | . . . . Secondary Targets . | . . . . Shots Hit Robots 84 | . 35 7 42 Core Hits 40 | . 16 7 17 Critical Hits . | . . . . Critical Kills . | . . . . Critical Parts Destroyed . | . . . . Melee Attacks . | . . . . Impact . | . . . . Slashing . | . . . . Piercing . | . . . . Sneak Attacks . | . . . . Combat Hostiles . | . . . . Follow-up Attacks . | . . . . Damage Inflicted 1635 | . 524 291 820 Guns 761 | . 318 52 391 Cannons 287 | . 200 45 42 Explosions 446 | . . 178 268 Melee . | . . . . Ramming 141 | . 6 16 119 Kinetic 1048 | . 518 97 433 Thermal . | . . . . Explosive 446 | . . 178 268 Electromagnetic . | . . . . Impact . | . . . . Slashing . | . . . . Piercing . | . . . . Highest Corruption 1 | . . . 1 Average Corruption 1 | . . . 1 Corruption Purged . | . . . . Overload Shots . | . . . . Overflow Damage 7 | . . 7 . Projectiles 7 | . . 7 . Explosions . | . . . . Melee . | . . . . Knockbacks 3 | . 1 2 . Impact . | . . . . Kinetic 3 | . 1 2 . Secondary . | . . . . Self-Inflicted Damage 32 | . . . 32 Shots 1 | . . . 1 Rammed 30 | . 1 1 28 Targets Rammed 31 | . 1 2 28 Kicked . | . . . . Crushed 1 | . . 1 . Highest Temperature 53 | . 53 . 3 Average Temperature 21 | . 22 . 2 Received Heat Transfer 195 | . 195 . . Siege Activations . | . . . . Robots Corrupted . | . . . . Combat Hostiles . | . . . . Parts Fried . | . . . . Impact Corruptions 1 | . . . 1 Robots Melted . | . . . . Combat Hostiles . | . . . . Parts Melted . | . . . . Heat Transferred . | . . . . Parts Sabotaged . | . . . . Parts Stolen . | . . . . Parts Stripped . | . . . . Power Chain Reactions . | . . . . Missiles Intercepted . | . . . . Alert | -11 -10 -10 -10 ------- Run | Scr Mat Min Exi Peak Influence 155 | . 142 155 . Initial 55 | . . 55 . Average 45 | . 48 43 . Maximum Alert Level . | . . . . Low Security (%) 100 | . 100 100 . Level 1 . | . . . . Level 2 . | . . . . Level 3 . | . . . . Level 4 . | . . . . Level 5 . | . . . . High Security . | . . . . Max Security . | . . . . Squads Dispatched 1 | . 1 . . Investigation . | . . . . Extermination . | . . . . Reinforcement 1 | . 1 . . Assault . | . . . . Garrison . | . . . . Intercept . | . . . . Construction Impeded . | . . . . Haulers Reinforced . | . . . . Stealth | -11 -10 -10 -10 --------- Run | Scr Mat Min Exi Distress Signals . | . . . . Communications Jammed . | . . . . Distress Signals . | . . . . Times Spotted 25 | . 10 3 12 Peak Tracking Total 12 | . 2 3 12 Tactical Retreats 1 | . . . 1 Traps | -11 -10 -10 -10 ------- Run | Scr Mat Min Exi Traps Triggered 1 | . 1 . . Indirectly . | . . . . Trap Hack Attempts . | . . . . Triggered . | . . . . Disarmed . | . . . . Reprogrammed . | . . . . Reused . | . . . . Traps Extracted . | . . . . Installed . | . . . . Triggered . | . . . . Machines | -11 -10 -10 -10 ---------- Run | Scr Mat Min Exi Machines Disabled 6 | . 1 1 4 Max in Single Turn 1 | . 1 1 1 Machines Sabotaged . | . . . . Garrisons Compromised . | . . . . Overloaded Fab Kills . | . . . . Fab Network Shutdowns . | . . . . Hacking | -11 -10 -10 -10 --------- Run | Scr Mat Min Exi Machines Accessed 5 | . 3 1 1 Terminals 4 | . 3 1 . Fabricators . | . . . . Repair Stations . | . . . . Recycling Units . | . . . . Scanalyzers . | . . . . Garrison Access . | . . . . Total Hacks 12 | . 10 1 1 Successful 6 | . 5 . 1 Failed 6 | . 5 1 . Catastrophic 2 | . 1 1 . Database Lockouts . | . . . . Manual 12 | . 10 1 1 Terminals 11 | . 10 1 . Fabricators . | . . . . Repair Stations . | . . . . Recycling Units . | . . . . Scanalyzers . | . . . . Garrison Access . | . . . . Terminal Hacks 6 | . 5 . 1 Robot Analysis 4 | . 4 . . Branch Access Points 1 | . 1 . . EX-Prototype ID Bank 1 | . . . 1 Fabricator Hacks . | . . . . Repair Station Hacks . | . . . . Recycling Unit Hacks . | . . . . Scanalyzer . | . . . . Garrison Access Hacks . | . . . . Unauthorized Hacks . | . . . . Terminals . | . . . . Fabricators . | . . . . Repair Stations . | . . . . Recycling Units . | . . . . Scanalyzers . | . . . . Garrison Access . | . . . . Data Cores Recovered . | . . . . Used . | . . . . Hacking Detections 3 | . 2 1 . Full Trace Events 1 | . 1 . . Feedback Events . | . . . . Feedback Blocked . | . . . . Robot Schematics Acquired . | . . . . Robots Built . | . . . . Matter . | . . . . Time . | . . . . Total Robot Build Rating . | . . . . Part Schematics Acquired . | . . . . Parts Built . | . . . . Matter . | . . . . Time . | . . . . Total Part Build Rating . | . . . . Parts Repaired . | . . . . Time . | . . . . Parts Recycled . | . . . . Recycled Matter . | . . . . Retrieved Matter . | . . . . Retrieved Components . | . . . . Parts Scanalyzed . | . . . . Part Schematics Acquired . | . . . . Parts Damaged . | . . . . Bothacking | -11 -10 -10 -10 ------------ Run | Scr Mat Min Exi Used RIF Installer . | . . . . Robots Hacked . | . . . . Non-combat . | . . . . Combat . | . . . . Robot Hacks Applied . | . . . . Relay Couplers Released . | . . . . Robots Rewired . | . . . . Allies Hacked . | . . . . Hacks Repelled . | . . . . Allies | -11 -10 -10 -10 -------- Run | Scr Mat Min Exi Total Allies 4 | . . . 4 Largest Group 1 | . . . 1 Highest-Rated Group 10 | . . . 10 Highest-Rated Ally 10 | . . . 10 Total Orders . | . . . . Ally Attacks 10 | . . . 10 Total Damage 205 | . . . 205 Kills 2 | . . . 2 Allies Corrupted 1 | . . . 1 Allies Melted . | . . . . Field Lobotomies 4 | . . . 4 Intel | -11 -10 -10 -10 ------- Run | Scr Mat Min Exi Robot Analysis Total 4 | . 4 . . Derelict Logs Recovered 2 | . . 2 . Drone Launches . | . . . . Drone Recoveries . | . . . . Exploration | -11 -10 -10 -10 ------------- Run | Scr Mat Min Exi Turns Passed 2619 | . 703 800 1116 Spaces Moved 1247 | 1 343 429 474 Core . | . . . . Treads 1229 | . 326 429 474 Legs 18 | 1 17 . . Wheels . | . . . . Hover . | . . . . Flight . | . . . . Fastest Speed 120 | 120 120 180 160 Average Speed 181 | 120 168 180 191 Slowest Speed 200 | 120 180 180 200 Overloaded Moves . | . . . . Propulsion Burnouts . | . . . . Robots Hopped . | . . . . Cave-ins Triggered . | . . . . Exploration Rate (%) 50 | 1 42 91 67 Regions Visited 3 Branch Regions 2 Pre-discovered Areas 2 | . . 2 . Known Exits Taken 1 | . 1 . . Unknown Exits Taken 2 | 1 . 1 . Scrap Searched 1 | . . 1 . Spaces Dug . | . . . . Terrain Destroyed 35 | . 4 19 12 Melee . | . . . . Projectile 6 | . 4 2 . AOE 29 | . . 17 12 Terrain Rammed . | . . . . Walls Destroyed . | . . . . Machines Disabled . | . . . . Actions | -11 -10 -10 -10 --------- Run | Scr Mat Min Exi Total 1448 | . 413 443 592 Wait 12 | . 8 . 4 Move 1244 | . 342 428 474 Hop . | . . . . Pick Up 42 | . 16 2 24 Fast Attach 3 | . 2 . 1 Attach 14 | . 4 . 10 Detach . | . . . . Swap 10 | . 3 3 4 Drop 16 | . 9 1 6 Fire 76 | . 28 7 41 Melee . | . . . . Ram . | . . . . Kick . | . . . . Crush 31 | . 1 2 28 Escape Stasis . | . . . . Rewire . | . . . . Trap . | . . . . Miscellaneous . | . . . . Route ------- -11/Scrapyard -10/Materials -10/Mines (discovered 3 exits: [*Mat x2] / *Exi) -10/Exiles History --------- Turn | Location | Event 1 | -11/Scrapyard | Discovered new exit (range 0) 1 | -11/Scrapyard | Entered Materials 205 | -10/Materials | Identified exit to Mines 309 | -10/Materials | Build established: Mutant 704 | -10/Materials | Entered Mines 728 | -10/Mines | Met a Derelict bent on vengeance 1001 | -10/Mines | Discovered new exit (range 5) 1036 | -10/Mines | Learned location of Mines (-9) 1078 | -10/Mines | Learned location of Zion (-7) 1132 | -10/Mines | Discovered new exit (range 11) 1175 | -10/Mines | Deemed a non-threat by the Exiles lab entrance 1175 | -10/Mines | Discovered new exit (range 5) 1504 | -10/Mines | Entered Exiles 1696 | -10/Exiles | Met 8R-AWN 1725 | -10/Exiles | Met EX-HEX 1793 | -10/Exiles | Met EX-DEC 2162 | -10/Exiles | Build established: Hauler-Mutant 2172 | -10/Exiles | Met EX-BIN 2200 | -10/Exiles | Aligned with FarCom system 2202 | -10/Exiles | Given EX-Vault access code 2248 | -10/Exiles | Opened EX-Vault 2260 | -10/Exiles | Found Field Lobotomy Kit 2265 | -10/Exiles | Found Superbattery 2320 | -10/Exiles | Warned to stay clear of 0b10 Research branches 2410 | -10/Exiles | Attacked by the Exiles 2416 | -10/Exiles | Assimilated DAS Turret with FLK Orb 2450 | -10/Exiles | Assimilated as-45673 with FLK Orb 2453 | -10/Exiles | Assimilated as-70499 with FLK Orb 2454 | -10/Exiles | Allies destroyed EX-BIN 2464 | -10/Exiles | Assimilated as-58784 with FLK Orb 2509 | -10/Exiles | Core integrity fell below 50% 2512 | -10/Exiles | Lost 7 parts (1p2n4w) 2595 | -10/Exiles | Core integrity fell below 20% 2620 | -10/Exiles | Destroyed by 8R-AWN with 8R-AWN's Boregun Last Messages --------------- 02599_ Penetrated by HV Slug. 02599_ Critical hit. 02599_ Assault Rifle destroyed. 02599_ HV Slug penetrates Wall. 02599_ Slammed into 8R-AWN. 02603_ Penetrated by HV Slug. 02604_ Slammed into 8R-AWN. 02607_ Penetrated by HV Slug. 02607_ HV Slug penetrates Wall. 02607_ Penetrated by HV Slug. 02607_ HV Slug penetrates Wall. 02608_ Slammed into 8R-AWN. 02611_ Penetrated by HV Slug. 02611_ HV Slug penetrates Wall. 02611_ Penetrated by HV Slug. 02611_ HV Slug penetrates Wall. 02613_ Slammed into 8R-AWN. 02616_ Penetrated by HV Slug. 02617_ Slammed into 8R-AWN. 02620_ Penetrated by HV Slug. Map ----- +----------------------------------------------------+ | ""#???????????? """????????#" """#???? | | ""#????????????" """#???????## """"???? | | ###???????????"" ?????????# """#???? | | #?????????????"" ?????????#" "X" """"???? | | ##????????????"" "#????????#" """ #???? | | "#???????????? ""?????????#" """""""""#???? | | ###???????????" "?????????##" ###########???? | | ##??????????# #????????##"" #?????????????? | | ######???### ###?######"" #?????????????? | | """##### " # ### """""" ##????????????? | | " "" ##???######### | | " " #####"""""""" | | # " """ "" | | ### "" " | | ??### " | | ????## | | ?????## | | ??????##" | | ???????# " ! """""" | | ??????##" !!= ######""" | | ??????#" [==!=""####??#####""" | | ?????## " =% "##? #??????##""" | | ?????#""" % %%! #### ????????#"""" | | ?????# !!! ##???????#"" | | ?????#"" % !!%* g ##??####"""" | | ?????#" !!! #@%=a####""" | | ?????#"" ! !*%= """" | | ?????## % ! | | ??????#""" | | ??????## " | | ???????#" "" """ | | ???????#"""" "## ##""" " " ""#" | | ???????#"" ""#### ######""" """##"" | | ???????#" """##??# #?????##""""??### | | ????????""" """#??## ####????????????? | | ???????## ""##??# " #????????????? | | ????????#"" ""##???#" #????????????? | | ?????????#""" ##????#" "#????????????? | | ??????????#" "" ##?????#!!""!"#????????????? | | ????????????# #??????########????????????? | | ??????????????### #???????????????????????????? | | ????????????????## ????????????????????????????? | | ?????????????????? ????????????????????????????? | | ?????????????????????????????????????????????????? | | ?????????????????????????????????????????????????? | | ?????????????????????????????????????????????????? | | ?????????????????????????????????????????????????? | | ?????????????????????????????????????????????????? | | ?????????????????????????????????????????????????? | | ?????????????????????????????????????????????????? | +----------------------------------------------------+ Best States ------------- Heat Dissipation 25 Energy Generation 10 Energy Capacity 125 Matter Stores 300 Matter Capacity 300 Sight Range 16 Terrain Scan Density 10 Heat Shielding 75 Evasion (%) 40 Recoil Reduction 2 Item Schematics ----------------- None Robot Schematics ------------------ None Fabricated ------------ Nothing Alien Tech Used ----------------- None Achievements -------------- None Challenges ------------ None Game ------ Seed BarrageArmageddonExoskeleton Manual? 0 Play Time 00:13:56 Cumulative 270.8 hours Start 2021.01.26 @ 19:30:26 End 2021.01.26 @ 19:42:24 Sessions 1 Manual Loads 0 Difficulty Rogue Special Mode None Game No. 231 Rogue 224 Adventurer 0 Explorer 7 Win Type - Total 7 Types 2/0/5/0/0/0/0/0/0 Lore% 74 Gallery% 91 Achievement% 71 Wizard Run 0 Options --------- ASCII 0 Keyboard 0 Movement Mouse Keybinds 0 Fullscreen 1 Font 18/X11 Map View 76x50 Tactical HUD 1 Map Filters NONE Filters NONE Steam 1 RUN: faf29bc6-b39f-444d-b7a2-5006d35fd661